[Event "NSV Open-ch Rapid 2019"]
[Site "Lueneburg"]
[Date "2019.08.04"]
[Round "7.10"]
[White "Colbow, Collin"]
[Black "Daemmig, Matthias"]
[Result "1-0"]
[ECO "C07"]
[WhiteElo "2167"]
[BlackElo "2059"]
[Annotator "ChessBase"]
[PlyCount "151"]
[EventDate "2019.08.03"]
[EventType "swiss"]
[EventCountry "GER"]
[SourceTitle "playchess.com"]
[Source "ChessBase"]
[SourceQuality "1"]
[TimeControl "600+5"]

1. e4 {[%emt 0:00:00]} c5 {[%emt 0:00:00]} 2. Nf3 {[%emt 0:00:00]} Nf6 {[%emt 0:00:00]} 3. Nc3 {[%emt 0:00:02]} d5 {[%emt 0:00:00]} 4. e5 {[%emt 0:00:32]} Nfd7 {[%emt 0:00:00]} 5. d4 {[%emt 0:00:44]} e6 {[%emt 0:00:05]} 6. Ne2 {[%emt 0:00:42]} cxd4 {[%emt 0:00:09]} 7. Nexd4 {[%emt 0:00:02]} Nc6 {[%emt 0:00:02]} 8. Bf4 {[%emt 0:00:15]} Qb6 {[%emt 0:00:17]} 9. Nb3 {[%emt 0:00:35]} h6 {[%emt 0:01:52]} 10. h4 {[%emt 0:00:59]} Qc7 {[%emt 0:00:26]} 11. Bb5 {[%emt 0:01:22]} g6 {[%emt 0:00:06]} 12. O-O {[%emt 0:00:08]} Bg7 {[%emt 0:00:05]} 13. Re1 {[%emt 0:00:01]} O-O {[%emt 0:00:07]} 14. Qe2 {[%emt 0:00:26]} a6 {[%emt 0:00:33]} 15. Bd3 {[%emt 0:00:01]} Nb4 {[%emt 0:00:49]} 16. a3 {[%emt 0:00:21]} Nxd3 {[%emt 0:00:04]} 17. cxd3 {[%emt 0:00:00]} Qb6 {[%emt 0:00:09]} 18. Qc2 {[%emt 0:00:17]} a5 {[%emt 0:00:27]} 19. Be3 {[%emt 0:00:14]} Qd8 {[%emt 0:01:21]} 20. Bc5 {[%emt 0:00:33]} Nxc5 {[%emt 0:00:08]} 21. Qxc5 {[%emt 0:00:05]} b6 {[%emt 0:00:18]} 22. Qe3 {[%emt 0:00:22]} a4 {[%emt 0:00:43]} 23. Nbd4 {[%emt 0:00:02]} Qd7 {[%emt 0:00:06]} 24. Rac1 {[%emt 0:00:04]} Bb7 {[%emt 0:00:02]} 25. Rc3 {[%emt 0:00:10]} Rfc8 {[%emt 0:00:03]} 26. Rec1 {[%emt 0:00:01]} Rxc3 {[%emt 0:00:02]} 27. Rxc3 {[%emt 0:00:02]} Rc8 {[%emt 0:00:05]} 28. Qc1 {[%emt 0:00:02]} Rxc3 {[%emt 0:00:11]} 29. Qxc3 {[%emt 0:00:03]} Bf8 {[%emt 0:00:14]} 30. Ne1 {[%emt 0:00:56]} Bc5 {[%emt 0:00:29]} 31. Nec2 {[%emt 0:00:12]} Qc7 {[%emt 0:00:31]} 32. Nf3 {[%emt 0:00:17]} Qd8 {[%emt 0:01:05]} 33. d4 {[%emt 0:00:14]} Be7 {[%emt 0:00:01]} 34. g3 {[%emt 0:00:01]} Ba6 {[%emt 0:00:04]} 35. Nb4 {[%emt 0:01:06]} Bc4 {[%emt 0:00:11]} 36. Nd2 {[%emt 0:00:05]} b5 {[%emt 0:00:14]} 37. Nc6 {[%emt 0:00:08]} Qd7 {[%emt 0:00:06]} 38. Nxe7+ {[%emt 0:00:01]} Qxe7 {[%emt 0:00:01]} 39. Nf3 {[%emt 0:00:26]} Kg7 {[%emt 0:00:25]} 40. Ne1 {[%emt 0:00:21]} f6 {[%emt 0:00:07]} 41. Nd3 {[%emt 0:00:39]} Bxd3 {[%emt 0:00:06]} 42. exf6+ {[%emt 0:00:07]} Kxf6 {[%emt 0:01:10]} 43. Qxd3 {[%emt 0:00:00]} b4 {[%emt 0:00:00]} 44. Qe3 {[%emt 0:00:42]} bxa3 {[%emt 0:00:23]} 45. bxa3 {[%emt 0:00:00]} Kg7 {[%emt 0:00:02]} 46. Qe5+ {[%emt 0:00:10]} Kh7 {[%emt 0:00:01]} 47. h5 {[%emt 0:00:14]} gxh5 {[%emt 0:00:04]} 48. Qxh5 {[%emt 0:00:04]} Qf6 {[%emt 0:00:04]} 49. Qg4 {[%emt 0:00:07]} Qg6 {[%emt 0:00:03]} 50. Qf3 {[%emt 0:00:07]} Qf5 {[%emt 0:00:02]} 51. Qc3 {[%emt 0:00:05]} Kg6 {[%emt 0:00:05]} 52. Qb4 {[%emt 0:00:02]} Qc2 {[%emt 0:00:03]} 53. Qe7 {[%emt 0:00:08]} Qc6 {[%emt 0:00:08]} 54. Kg2 {[%emt 0:00:05]} h5 {[%emt 0:00:04]} 55. Qf8 {[%emt 0:00:02]} Qd7 {[%emt 0:00:05]} 56. Qg8+ {[%emt 0:00:01]} Kf6 {[%emt 0:00:08]} 57. f4 {[%emt 0:00:01]} Qg7 {[%emt 0:00:10]} 58. Qe8 {[%emt 0:00:10]} Qe7 {[%emt 0:00:09]} 59. Qxa4 {[%emt 0:00:03]} Qc7 {[%emt 0:00:06]} 60. Qb3 {[%emt 0:00:05]} Qc1 {[%emt 0:00:03]} 61. Qd3 {[%emt 0:00:08]} Qa1 {[%emt 0:00:14]} 62. Qe3 {[%emt 0:00:04]} Kf7 {[%emt 0:00:05]} 63. Qe5 {[%emt 0:00:09]} Qxa3 {[%emt 0:00:03]} 64. Qxh5+ {[%emt 0:00:00]} Ke7 {[%emt 0:00:01]} 65. Qe5 {[%emt 0:00:04]} Qa1 {[%emt 0:00:05]} 66. Kh3 {[%emt 0:00:06]} Qh1+ {[%emt 0:00:01]} 67. Kg4 {[%emt 0:00:00]} Qd1+ {[%emt 0:00:02]} 68. Kg5 {[%emt 0:00:03]} Qc2 {[%emt 0:00:05]} 69. f5 {[%emt 0:00:11]} Qd2+ {[%emt 0:00:01]} 70. Kg6 {[%emt 0:00:01]} Qc2 {[%emt 0:00:05]} 71. Qxe6+ {[%emt 0:00:02]} Kd8 {[%emt 0:00:02]} 72. Qxd5+ {[%emt 0:00:01]} Ke8 {[%emt 0:00:02]} 73. Qf7+ {[%emt 0:00:14]} Kd8 {[%emt 0:00:02]} 74. d5 {[%emt 0:00:03]} Qc4 {[%emt 0:00:03]} 75. Qf6+ {[%emt 0:00:07]} Ke8 {[%emt 0:00:02]} 76. Qc6+ {[%emt 0:00:01]} 1-0

[Event "NSV Open-ch Rapid 2019"]
[Site "Lueneburg"]
[Date "2019.08.04"]
[Round "7.13"]
[White "Reimers, Achim"]
[Black "Kolhoff, Manfred"]
[Result "1-0"]
[ECO "D00"]
[WhiteElo "1975"]
[BlackElo "1616"]
[Annotator "NA RC"]
[PlyCount "88"]
[EventDate "2019.08.03"]
[EventType "swiss"]
[EventCountry "GER"]
[SourceTitle "playchess.com"]
[Source "ChessBase"]
[SourceQuality "1"]
[TimeControl "600+5"]

1. d4 {[%emt 0:00:00]} d5 {[%emt 0:00:00]} 2. c3 {[%emt 0:00:01]} Nf6 {[%emt 0:00:03]} 3. e3 {[%emt 0:00:07]} e6 {[%emt 0:00:04]} 4. f4 {[%emt 0:00:02]} c5 {[%emt 0:00:01]} 5. Nf3 {[%emt 0:00:02]} Nc6 {[%emt 0:00:03]} 6. Bd3 {[%emt 0:00:03]} c4 {[%emt 0:00:13]} 7. Bc2 {[%emt 0:00:02]} Qb6 {[%emt 0:00:09]} 8. O-O {[%emt 0:00:04]} Bd7 {[%emt 0:00:01]} 9. Nbd2 {[%emt 0:00:06]} Bd6 {[%emt 0:00:04]} 10. Qe2 {[%emt 0:00:04]} h6 {[%emt 0:00:03]} 11. Ne5 {[%emt 0:00:05]} Bxe5 {[%emt 0:00:47]} 12. fxe5 {[%emt 0:00:03]} Nh7 {[%emt 0:00:02]} 13. Kh1 {[%emt 0:00:11]} f5 {[%emt 0:00:40]} 14. exf6 {[%emt 0:00:04]} Nxf6 {[%emt 0:00:03]} 15. Bg6+ {[%emt 0:00:18]} Ke7 {[%emt 0:00:08]} 16. e4 {[%emt 0:00:06]} Raf8 {[%emt 0:00:04]} 17. exd5 {[%emt 0:00:20]} Nxd5 {[%emt 0:00:01]} 18. Nxc4 {[%emt 0:01:00]} Rxf1+ {[%emt 0:00:20]} 19. Qxf1 {[%emt 0:00:04]} Qd8 {[%emt 0:00:04]} 20. Qe2 {[%emt 0:00:21]} Rf8 {[%emt 0:00:13]} 21. Bd2 {[%emt 0:00:09]} Rf6 {[%emt 0:00:27]} 22. Bd3 {[%emt 0:00:06]} Qf8 {[%emt 0:00:03]} 23. Rf1 {[%emt 0:00:18]} Kd8 {[%emt 0:00:13]} 24. h3 {[%emt 0:00:23]} Nf4 {[%emt 0:00:09]} 25. Bxf4 {[%emt 0:00:45]} Rxf4 26. a3 {[%emt 0:07:26]} g5 {[%emt 0:00:59]} 27. Nd2 {[%emt 0:00:00]} Ne7 {[%emt 0:00:10]} 28. Nf3 {[%emt 0:00:00]} a6 {[%emt 0:00:52]} 29. Ne5 {[%emt 0:00:00]} Rxf1+ {[%emt 0:00:06]} 30. Qxf1 {[%emt 0:00:00]} Qxf1+ {[%emt 0:00:02]} 31. Bxf1 {[%emt 0:00:00]} Nf5 {[%emt 0:00:07]} 32. Bd3 {[%emt 0:00:00]} Ke7 {[%emt 0:00:30]} 33. Bxf5 {[%emt 0:00:00]} exf5 {[%emt 0:00:01]} 34. Nxd7 {[%emt 0:00:00]} Kxd7 {[%emt 0:00:01]} 35. Kg1 {[%emt 0:00:00]} Kd6 {[%emt 0:00:02]} 36. Kf2 {[%emt 0:00:00]} Kd5 {[%emt 0:00:02]} 37. Ke3 {[%emt 0:00:00]} b5 {[%emt 0:00:06]} 38. b3 {[%emt 0:00:00]} h5 {[%emt 0:00:27]} 39. Kd3 {[%emt 0:00:00]} f4 {[%emt 0:00:05]} 40. c4+ {[%emt 0:00:00]} bxc4+ {[%emt 0:00:01]} 41. bxc4+ {[%emt 0:00:00]} Kd6 {[%emt 0:00:05]} 42. Ke4 {[%emt 0:00:00]} Ke6 {[%emt 0:01:20]} 43. h4 {[%emt 0:00:00]} Kf6 {[%emt 0:00:18]} 44. c5 {[%emt 0:00:00]} Ke7 {[%emt 0:04:31]} 1-0

[Event "NSV Open-ch Rapid 2019"]
[Site "Lueneburg"]
[Date "2019.08.04"]
[Round "7.14"]
[White "von Estorff, Jacob"]
[Black "Dralle, Hannes"]
[Result "1-0"]
[ECO "B44"]
[WhiteElo "2055"]
[BlackElo "1732"]
[Annotator "NA RC"]
[PlyCount "51"]
[EventDate "2019.08.03"]
[EventType "swiss"]
[EventCountry "GER"]
[SourceTitle "playchess.com"]
[Source "ChessBase"]
[SourceQuality "1"]
[TimeControl "600+5"]

1. e4 {[%emt 0:00:00]} c5 {[%emt 0:00:00]} 2. Nf3 {[%emt 0:00:00]} e6 {[%emt 0:00:00]} 3. d4 {[%emt 0:00:00]} cxd4 {[%emt 0:00:00]} 4. Nxd4 {[%emt 0:00:00]} Nc6 {[%emt 0:00:00]} 5. Be3 {[%emt 0:00:02]} Qc7 {[%emt 0:00:01]} 6. Bd3 {[%emt 0:00:10]} a6 {[%emt 0:00:03]} 7. O-O {[%emt 0:00:02]} Ne5 {[%emt 0:00:02]} 8. Nd2 {[%emt 0:00:10]} Nf6 {[%emt 0:00:12]} 9. h3 {[%emt 0:00:08]} b5 {[%emt 0:00:19]} 10. Re1 {[%emt 0:00:54]} Bb7 {[%emt 0:00:07]} 11. Bf4 {[%emt 0:00:04]} Bd6 {[%emt 0:00:43]} 12. Bxe5 {[%emt 0:00:16]} Bxe5 {[%emt 0:00:08]} 13. N2f3 {[%emt 0:00:08]} Bf4 {[%emt 0:01:00]} 14. Qe2 {[%emt 0:01:11]} O-O {[%emt 0:00:08]} 15. g3 {[%emt 0:00:07]} Bh6 {[%emt 0:00:27]} 16. Rad1 {[%emt 0:00:10]} d5 {[%emt 0:00:41]} 17. exd5 {[%emt 0:00:13]} Bxd5 {[%emt 0:00:30]} 18. b3 {[%emt 0:00:29]} g6 {[%emt 0:00:16]} 19. Qe5 {[%emt 0:00:28]} Qxe5 {[%emt 0:00:13]} 20. Nxe5 {[%emt 0:00:01]} Bg7 {[%emt 0:00:27]} 21. c4 {[%emt 0:00:12]} bxc4 {[%emt 0:00:21]} 22. Bxc4 {[%emt 0:00:15]} Bb7 {[%emt 0:00:47]} 23. Ndc6 {[%emt 0:00:33]} Rac8 {[%emt 0:00:28]} 24. Ne7+ {[%emt 0:00:04]} Kh8 {[%emt 0:00:11]} 25. Nxc8 {[%emt 0:00:23]} Rxc8 {[%emt 0:05:01]} 26. Nxf7+ {[%emt 0:00:05]} 1-0

[Event "NSV Open-ch Rapid 2019"]
[Site "Lueneburg"]
[Date "2019.08.04"]
[Round "7.15"]
[White "Langer, Michael S."]
[Black "Serrer, David"]
[Result "1-0"]
[ECO "E61"]
[WhiteElo "1911"]
[BlackElo "1516"]
[Annotator "NA RC"]
[PlyCount "70"]
[EventDate "2019.08.03"]
[EventType "swiss"]
[EventCountry "GER"]
[SourceTitle "playchess.com"]
[Source "ChessBase"]
[SourceQuality "1"]
[TimeControl "600+5"]

1. Nf3 {[%emt 0:00:00]} Nf6 {[%emt 0:00:00]} 2. c4 {[%emt 0:00:05]} g6 {[%emt 0:00:05]} 3. d4 {[%emt 0:00:05]} Bg7 {[%emt 0:00:05]} 4. e3 {[%emt 0:00:05]} O-O {[%emt 0:00:05]} 5. Be2 {[%emt 0:00:05]} d6 {[%emt 0:00:05]} 6. O-O {[%emt 0:00:05]} Nbd7 {[%emt 0:00:05]} 7. Nc3 {[%emt 0:00:05]} c5 {[%emt 0:00:05]} 8. b3 {[%emt 0:00:05]} b6 {[%emt 0:00:05]} 9. Bb2 {[%emt 0:00:05]} Bb7 {[%emt 0:00:05]} 10. d5 {[%emt 0:00:05]} Qc7 {[%emt 0:00:08]} 11. Qc2 {[%emt 0:00:11]} e6 {[%emt 0:00:02]} 12. dxe6 {[%emt 0:00:25]} fxe6 {[%emt 0:00:03]} 13. Rad1 {[%emt 0:00:11]} d5 {[%emt 0:00:13]} 14. Ng5 {[%emt 0:00:43]} Rfe8 {[%emt 0:00:20]} 15. Nb5 {[%emt 0:00:22]} Qc6 {[%emt 0:00:27]} 16. Nf3 {[%emt 0:00:55]} a6 {[%emt 0:00:09]} 17. Na3 {[%emt 0:00:24]} e5 {[%emt 0:01:04]} 18. cxd5 {[%emt 0:00:17]} Qc7 {[%emt 0:00:54]} 19. e4 {[%emt 0:00:19]} Kh8 {[%emt 0:00:13]} 20. Nc4 {[%emt 0:00:19]} b5 {[%emt 0:00:14]} 21. Ne3 {[%emt 0:00:31]} Nh5 {[%emt 0:00:59]} 22. g3 {[%emt 0:00:22]} Rf8 {[%emt 0:00:39]} 23. Ng5 {[%emt 0:00:10]} Qd6 {[%emt 0:00:30]} 24. Ne6 {[%emt 0:00:16]} Rf6 {[%emt 0:00:16]} 25. Bxh5 {[%emt 0:00:21]} gxh5 {[%emt 0:00:49]} 26. Nxg7 {[%emt 0:00:29]} Rg6 {[%emt 0:00:17]} 27. Ngf5 {[%emt 0:00:12]} Qf6 {[%emt 0:00:25]} 28. f4 {[%emt 0:00:23]} Rag8 {[%emt 0:00:32]} 29. fxe5 {[%emt 0:00:55]} Qg5 {[%emt 0:00:38]} 30. e6+ {[%emt 0:00:28]} Nf6 {[%emt 0:00:03]} 31. Ng2 {[%emt 0:00:44]} h4 {[%emt 0:02:31]} 32. Nfxh4 {[%emt 0:00:21]} Qxh4 {[%emt 0:00:28]} 33. Nxh4 {[%emt 0:00:11]} Rxg3+ {[%emt 0:00:02]} 34. hxg3 {[%emt 0:00:07]} Rxg3+ {[%emt 0:00:01]} 35. Kh2 {[%emt 0:00:09] Ng4+ Kxg3+} Bc8 {[%emt 0:00:18]} 1-0

[Event "NSV Open-ch Rapid 2019"]
[Site "Lueneburg"]
[Date "2019.08.04"]
[Round "7.16"]
[White "Rempe, Jonas"]
[Black "Egelriede, Nikolas"]
[Result "1-0"]
[ECO "B01"]
[WhiteElo "1839"]
[BlackElo "1865"]
[Annotator "NA RC"]
[PlyCount "61"]
[EventDate "2019.08.03"]
[EventType "swiss"]
[EventCountry "GER"]
[SourceTitle "playchess.com"]
[Source "ChessBase"]
[SourceQuality "1"]
[TimeControl "600+5"]

1. e4 {[%emt 0:00:00]} d5 {[%emt 0:00:00]} 2. exd5 {[%emt 0:00:00]} Qxd5 {[%emt 0:00:00]} 3. Nf3 {[%emt 0:00:00]} Bg4 {[%emt 0:00:00]} 4. Be2 {[%emt 0:00:00]} Nc6 {[%emt 0:00:01]} 5. O-O {[%emt 0:00:01]} O-O-O {[%emt 0:00:02]} 6. Nc3 {[%emt 0:00:21]} Qd7 {[%emt 0:00:01]} 7. d3 {[%emt 0:00:03]} e5 {[%emt 0:00:02]} 8. Be3 {[%emt 0:00:09]} f6 {[%emt 0:00:04]} 9. h3 {[%emt 0:00:01]} Be6 {[%emt 0:00:20]} 10. a3 {[%emt 0:00:11]} g5 {[%emt 0:00:11]} 11. b4 {[%emt 0:00:00]} g4 {[%emt 0:00:14]} 12. hxg4 {[%emt 0:00:22]} Bxg4 {[%emt 0:00:02]} 13. b5 {[%emt 0:00:01]} Nb8 {[%emt 0:00:19]} 14. Bxa7 {[%emt 0:01:33]} Ne7 {[%emt 0:00:01]} 15. Bxb8 {[%emt 0:00:15]} Kxb8 {[%emt 0:00:02]} 16. Nxe5 {[%emt 0:00:08]} fxe5 {[%emt 0:00:34]} 17. Bxg4 {[%emt 0:00:01]} Qd4 {[%emt 0:00:11]} 18. Ne4 {[%emt 0:00:12]} Nd5 {[%emt 0:00:21]} 19. a4 {[%emt 0:00:19]} Rg8 {[%emt 0:00:19]} 20. a5 {[%emt 0:00:47]} Bb4 {[%emt 0:02:07]} 21. a6 {[%emt 0:00:42]} b6 {[%emt 0:00:29]} 22. c4 {[%emt 0:00:28]} Nc3 {[%emt 0:00:52]} 23. Nxc3 {[%emt 0:00:18]} Bxc3 {[%emt 0:00:10]} 24. a7+ {[%emt 0:00:09]} Kb7 {[%emt 0:00:40]} 25. Bf3+ {[%emt 0:00:04]} c6 {[%emt 0:00:25]} 26. Bxc6+ {[%emt 0:00:16]} Kc7 {[%emt 0:00:01]} 27. a8=Q {[%emt 0:00:23]} Bxa1 {[%emt 0:00:33]} 28. Qb7+ {[%emt 0:00:06]} Kd6 {[%emt 0:00:01]} 29. Qxa1 {[%emt 0:00:33]} Qg4 {[%emt 0:00:48]} 30. Qa3+ {[%emt 0:00:02]} Ke6 {[%emt 0:00:12]} 31. Qae7+ {[%emt 0:00:01]} 1-0

[Event "NSV Open-ch Rapid 2019"]
[Site "Lueneburg"]
[Date "2019.08.04"]
[Round "7.17"]
[White "Mundt, Alexandra"]
[Black "Joppien, Arne"]
[Result "0-1"]
[ECO "B19"]
[WhiteElo "1756"]
[BlackElo "1940"]
[Annotator "NA RC"]
[PlyCount "68"]
[EventDate "2019.08.03"]
[EventType "swiss"]
[EventCountry "GER"]
[SourceTitle "playchess.com"]
[Source "ChessBase"]
[SourceQuality "1"]
[TimeControl "600+5"]

1. e4 {[%emt 0:00:00]} c6 {[%emt 0:00:00]} 2. d4 {[%emt 0:00:00]} d5 {[%emt 0:00:00]} 3. Nd2 {[%emt 0:00:00]} dxe4 {[%emt 0:00:00]} 4. Nxe4 {[%emt 0:00:02]} Bf5 {[%emt 0:00:01]} 5. Ng3 {[%emt 0:00:01]} Bg6 {[%emt 0:00:01]} 6. h4 {[%emt 0:00:01]} h6 {[%emt 0:00:02]} 7. Nf3 {[%emt 0:00:05]} Nd7 {[%emt 0:00:04]} 8. h5 {[%emt 0:00:32]} Bh7 {[%emt 0:00:02]} 9. Bd3 {[%emt 0:00:02]} Bxd3 {[%emt 0:00:02]} 10. Qxd3 {[%emt 0:00:02]} e6 {[%emt 0:00:02]} 11. Bf4 {[%emt 0:00:05]} Qa5+ {[%emt 0:00:05]} 12. c3 {[%emt 0:00:05]} Ngf6 {[%emt 0:00:07]} 13. Nd2 {[%emt 0:00:48]} b5 {[%emt 0:00:44]} 14. Nde4 {[%emt 0:00:42]} Nd5 {[%emt 0:02:09]} 15. Nd6+ {[%emt 0:00:41]} Bxd6 {[%emt 0:00:09]} 16. Bxd6 {[%emt 0:00:01]} N7f6 {[%emt 0:00:46]} 17. O-O {[%emt 0:00:14]} Qd8 {[%emt 0:00:52]} 18. Ba3 {[%emt 0:01:52]} a5 {[%emt 0:00:16]} 19. b3 {[%emt 0:00:08]} b4 {[%emt 0:00:12]} 20. cxb4 {[%emt 0:00:12]} axb4 {[%emt 0:00:04]} 21. Bb2 {[%emt 0:00:01]} O-O {[%emt 0:00:13]} 22. Qc4 {[%emt 0:00:09]} Qd6 {[%emt 0:00:50]} 23. Rfc1 {[%emt 0:00:20]} Rfc8 {[%emt 0:00:12]} 24. Rc2 {[%emt 0:02:50]} Qf4 {[%emt 0:00:10]} 25. Bc1 {[%emt 0:00:27]} Qh4 {[%emt 0:00:16]} 26. Bd2 {[%emt 0:00:23]} Rab8 {[%emt 0:01:24]} 27. Rac1 {[%emt 0:01:09]} Nxh5 {[%emt 0:00:49]} 28. Nxh5 {[%emt 0:00:01]} Qxh5 {[%emt 0:00:02]} 29. Qa6 {[%emt 0:00:20]} Qg4 {[%emt 0:00:19]} 30. Rxc6 {[%emt 0:00:57]} Rxc6 {[%emt 0:00:05]} 31. Qxc6 {[%emt 0:00:05]} Qxd4 {[%emt 0:00:10]} 32. Be1 {[%emt 0:00:11]} Nf4 {[%emt 0:01:03]} 33. Kh1 {[%emt 0:00:12]} Ne2 {[%emt 0:01:01]} 34. f3 {[%emt 0:00:12]} Qg1# {[%emt 0:00:38]} 0-1

[Event "NSV Open-ch Rapid 2019"]
[Site "Lueneburg"]
[Date "2019.08.04"]
[Round "7.20"]
[White "Rick, Niklas Corvin"]
[Black "Wirries, Frank-Michael"]
[Result "0-1"]
[ECO "A48"]
[WhiteElo "1444"]
[BlackElo "1858"]
[Annotator "NA RC"]
[PlyCount "80"]
[EventDate "2019.08.03"]
[EventType "swiss"]
[EventCountry "GER"]
[SourceTitle "playchess.com"]
[Source "ChessBase"]
[SourceQuality "1"]
[TimeControl "600+5"]

1. d4 {[%emt 0:00:00]} Nf6 {[%emt 0:00:00]} 2. c4 {[%emt 0:00:03]} g6 {[%emt 0:00:00]} 3. Nf3 {[%emt 0:00:03]} Bg7 {[%emt 0:00:00]} 4. Bf4 {[%emt 0:00:02]} d6 {[%emt 0:00:02]} 5. e3 {[%emt 0:00:07]} O-O {[%emt 0:00:05]} 6. Be2 {[%emt 0:00:14]} Re8 {[%emt 0:01:11]} 7. h3 {[%emt 0:00:09]} Nbd7 {[%emt 0:00:03]} 8. O-O {[%emt 0:00:05]} Nh5 {[%emt 0:00:35]} 9. Bh2 {[%emt 0:00:07]} e5 {[%emt 0:00:09]} 10. Nc3 {[%emt 0:00:35]} e4 {[%emt 0:00:58]} 11. Nd2 {[%emt 0:00:20]} Nhf6 {[%emt 0:00:01]} 12. Qc2 {[%emt 0:00:11]} b5 {[%emt 0:02:20]} 13. Ndxe4 {[%emt 0:00:19]} Nxe4 {[%emt 0:00:28]} 14. Nxe4 {[%emt 0:00:05]} bxc4 {[%emt 0:00:14]} 15. Bxc4 {[%emt 0:00:08]} Nb6 {[%emt 0:00:26]} 16. Bb3 {[%emt 0:00:36]} Bf5 {[%emt 0:00:38]} 17. f3 {[%emt 0:01:02]} d5 {[%emt 0:01:12]} 18. g4 {[%emt 0:00:23]} dxe4 {[%emt 0:00:25]} 19. gxf5 {[%emt 0:00:05]} exf3 {[%emt 0:00:08]} 20. fxg6 {[%emt 0:00:14]} Qg5+ {[%emt 0:00:09]} 21. Kh1 {[%emt 0:00:01]} hxg6 {[%emt 0:01:11]} 22. Rxf3 {[%emt 0:00:22]} Nd5 {[%emt 0:00:23]} 23. Rg1 {[%emt 0:00:40]} Qh5 {[%emt 0:00:01]} 24. e4 {[%emt 0:00:24]} Qxf3+ {[%emt 0:00:03]} 25. Qg2 {[%emt 0:00:04]} Qxg2+ {[%emt 0:00:17]} 26. Rxg2 {[%emt 0:05:51]} Ne3 {[%emt 0:00:17]} 27. Rxg6 {[%emt 0:00:00]} Rxe4 {[%emt 0:00:11]} 28. Be5 {[%emt 0:00:00]} Rxe5 {[%emt 0:00:07]} 29. dxe5 {[%emt 0:00:00]} Re8 {[%emt 0:00:07]} 30. Ra6 {[%emt 0:00:00]} Rxe5 {[%emt 0:00:18]} 31. Rxa7 {[%emt 0:00:00]} Rh5 {[%emt 0:00:03]} 32. Kh2 {[%emt 0:00:00]} Be5+ {[%emt 0:00:04]} 33. Kg1 {[%emt 0:00:00]} Bd4 {[%emt 0:00:14]} 34. Ra8+ {[%emt 0:00:00]} Kg7 {[%emt 0:00:03]} 35. Kh2 {[%emt 0:00:00]} Nf5 {[%emt 0:00:16]} 36. Ra5 {[%emt 0:00:00]} c5 {[%emt 0:00:09]} 37. Bc2 {[%emt 0:00:00]} Be5+ {[%emt 0:00:02]} 38. Kg2 {[%emt 0:00:00]} Ne3+ {[%emt 0:00:01]} 39. Kf2 {[%emt 0:00:00]} Nxc2 {[%emt 0:00:00]} 40. Rxc5 {[%emt 0:00:00]} Bd4+ {[%emt 0:00:02]} 0-1

[Event "NSV Open-ch Rapid 2019"]
[Site "Lueneburg"]
[Date "2019.08.04"]
[Round "7.21"]
[White "Kueck, Alexander"]
[Black "Britsch, Benjamin"]
[Result "0-1"]
[ECO "C02"]
[WhiteElo "1374"]
[BlackElo "1835"]
[Annotator "NA RC"]
[PlyCount "58"]
[EventDate "2019.08.03"]
[EventType "swiss"]
[EventCountry "GER"]
[SourceTitle "playchess.com"]
[Source "ChessBase"]
[SourceQuality "1"]
[TimeControl "600+5"]

1. e4 {[%emt 0:00:00]} e6 {[%emt 0:00:00]} 2. d4 {[%emt 0:00:00]} d5 {[%emt 0:00:00]} 3. e5 {[%emt 0:00:05]} c5 {[%emt 0:00:00]} 4. Be3 {[%emt 0:00:12]} cxd4 {[%emt 0:00:35]} 5. Bxd4 {[%emt 0:00:06]} Nc6 {[%emt 0:00:06]} 6. Nf3 {[%emt 0:00:14]} a6 {[%emt 0:00:16]} 7. c4 {[%emt 0:00:17]} Bb4+ {[%emt 0:00:18]} 8. Nc3 {[%emt 0:00:14]} Nge7 {[%emt 0:00:56]} 9. cxd5 {[%emt 0:00:07]} Nxd5 {[%emt 0:00:03]} 10. Be2 {[%emt 0:00:21]} Qa5 {[%emt 0:00:35]} 11. Qd2 {[%emt 0:00:13]} Nxd4 {[%emt 0:00:14]} 12. Nxd4 {[%emt 0:01:06]} Nxc3 {[%emt 0:02:28]} 13. a3 {[%emt 0:01:10]} Nxe2 {[%emt 0:00:25]} 14. Qxb4 {[%emt 0:00:30]} Qxb4+ {[%emt 0:00:03]} 15. axb4 {[%emt 0:00:14]} Nxd4 {[%emt 0:00:02]} 16. O-O {[%emt 0:00:24]} O-O {[%emt 0:00:33]} 17. Rfe1 {[%emt 0:00:15]} Nc2 {[%emt 0:00:04]} 18. Kf1 {[%emt 0:00:16]} Rd8 {[%emt 0:00:17]} 19. f4 {[%emt 0:00:26]} Bd7 {[%emt 0:00:06]} 20. Kf2 {[%emt 0:00:14]} g6 {[%emt 0:00:08]} 21. Rac1 {[%emt 0:00:17]} Nxe1 {[%emt 0:00:03]} 22. Rxe1 {[%emt 0:00:01]} Bc6 {[%emt 0:00:05]} 23. g3 {[%emt 0:01:09]} Rd2+ {[%emt 0:00:06]} 24. Re2 {[%emt 0:00:13]} Rad8 {[%emt 0:00:02]} 25. Ke3 {[%emt 0:00:16]} Rxe2+ {[%emt 0:00:07]} 26. Kxe2 {[%emt 0:00:02]} Rd4 {[%emt 0:00:02]} 27. Ke3 {[%emt 0:00:12]} Rxb4 {[%emt 0:00:02]} 28. Kf2 {[%emt 0:00:10]} Rxb2+ {[%emt 0:00:03]} 29. Ke3 {[%emt 0:00:02]} Rxh2 {[%emt 0:00:03]} 0-1

[Event "NSV Open-ch Rapid 2019"]
[Site "Lueneburg"]
[Date "2019.08.04"]
[Round "7.24"]
[White "Marzik, Arne"]
[Black "Schubert, Karl Heinz"]
[Result "0-1"]
[ECO "A47"]
[WhiteElo "1366"]
[BlackElo "1335"]
[Annotator "NA RC"]
[PlyCount "80"]
[EventDate "2019.08.03"]
[EventType "swiss"]
[EventCountry "GER"]
[SourceTitle "playchess.com"]
[Source "ChessBase"]
[SourceQuality "1"]
[TimeControl "600+5"]

1. d4 {[%emt 0:00:02]} b6 {[%emt 0:00:00]} 2. Nf3 {[%emt 0:00:02]} Bb7 {[%emt 0:00:00]} 3. g3 {[%emt 0:00:04]} Nf6 {[%emt 0:00:01]} 4. Bg2 {[%emt 0:00:01]} d6 {[%emt 0:00:09]} 5. c4 {[%emt 0:00:05]} e5 {[%emt 0:00:26]} 6. O-O {[%emt 0:00:13]} e4 {[%emt 0:00:08]} 7. Nfd2 {[%emt 0:01:09]} d5 {[%emt 0:00:06]} 8. Nc3 {[%emt 0:00:10]} Qe7 {[%emt 0:00:24]} 9. e3 {[%emt 0:00:24]} Nbd7 {[%emt 0:00:17]} 10. cxd5 {[%emt 0:00:07]} Nxd5 {[%emt 0:00:10]} 11. Ncxe4 {[%emt 0:00:53]} N5f6 {[%emt 0:00:14]} 12. Nxf6+ {[%emt 0:00:04]} Qxf6 {[%emt 0:00:14]} 13. Bxb7 {[%emt 0:00:03]} Rd8 {[%emt 0:00:07]} 14. Bg2 {[%emt 0:00:08]} Bd6 {[%emt 0:00:15]} 15. Ne4 {[%emt 0:00:25]} Qh6 {[%emt 0:00:02]} 16. Nxd6+ {[%emt 0:00:15]} Qxd6 {[%emt 0:00:03]} 17. Re1 {[%emt 0:00:43]} Qg6 {[%emt 0:00:04]} 18. Qa4 {[%emt 0:00:45]} O-O {[%emt 0:00:16]} 19. Qxa7 {[%emt 0:00:25]} Nf6 {[%emt 0:00:03]} 20. Qxc7 {[%emt 0:00:32]} Rc8 {[%emt 0:00:16]} 21. Qxb6 {[%emt 0:00:10]} Qh5 {[%emt 0:00:33]} 22. h3 {[%emt 0:01:02]} Rc2 {[%emt 0:00:27]} 23. Qb3 {[%emt 0:00:50]} Qf5 {[%emt 0:00:07]} 24. f4 {[%emt 0:00:41]} Nh5 {[%emt 0:00:06]} 25. e4 {[%emt 0:00:30]} Qc8 {[%emt 0:00:12]} 26. Kh2 {[%emt 0:01:29]} Nf6 {[%emt 0:00:35]} 27. Be3 {[%emt 0:00:07]} Nxe4 {[%emt 0:00:22]} 28. Rac1 {[%emt 0:00:20]} Rxc1 {[%emt 0:00:18]} 29. Rxc1 {[%emt 0:00:01]} Qe8 {[%emt 0:00:16]} 30. Bxe4 {[%emt 0:00:13]} Qxe4 {[%emt 0:00:03]} 31. a4 {[%emt 0:00:28]} h5 {[%emt 0:00:02]} 32. h4 {[%emt 0:00:04]} Qf3 {[%emt 0:00:09]} 33. Qd1 {[%emt 0:00:06]} Qxe3 {[%emt 0:00:08]} 34. Qe1 {[%emt 0:00:05]} Qxd4 {[%emt 0:00:07]} 35. a5 {[%emt 0:00:02]} Qxb2+ {[%emt 0:00:09]} 36. Kh3 {[%emt 0:00:04]} Qb7 {[%emt 0:00:22]} 37. Ra1 {[%emt 0:00:12]} Qd7+ {[%emt 0:00:06]} 38. Kh2 {[%emt 0:00:01]} Rc8 {[%emt 0:00:15]} 39. Ra2 {[%emt 0:00:08]} Qd5 {[%emt 0:00:22]} 40. Qh1 {[%emt 0:00:03]} Qxa2+ {[%emt 0:00:04]} 0-1